{"text_format":"1","workbook":"xlsx","n_sheets":13,"sheets":["Procedure","Step 1","Step 2","Step 3","Step 4","Step 5","Step 6","Step 7","Step 8","Step 9","Results","_SSC","_Options"],"not_rendered":{"charts":0,"images":10,"macros":1,"external_links":0,"defined_names":89,"comments":0,"pivot_tables":0},"unopened":[],"bounds":{"document_bytes":16777216,"sheet_cells":100000,"rows_first":2000,"rows_last":500,"rows_between":2000,"halvings":0,"cell_chars":16384,"cell_head_chars":4096},"cells_cut":0,"cells_raw":0,"read":"whole","date_system":"1900"}

{"sheet":"Procedure","index":0,"n_rows":24,"n_cols":1,"rows_kept":24,"cut":false,"hidden":false,"merged":[]}
["                                                                                       Mounting Position Calculator         "]
["    PROCEDURE"]
["The following calculator helps you to work out the best mounting positions for the ForkAngles cable-guide and cable-adjuster assemblies."]
["Method:"]
["Adjust the forklift tilt control until the forks are level with the ground."]
["Identify possible mounting positions for the cable-guide and cable-adjuster assemblies."]
["Tip: mark the proposed mounting positions with chalk so you can refer to them again"]
["Follow the below steps and enter the measurements into the results page:"]
["Step 1: Measure height of cable-guide from ground"]
["Step 2: Measure horizontal distance between cable-guide and mast face"]
["Step 3: Measure horizontal distance from mast face to cable adjuster"]
["Step 4: Measure vertical height of cable-adjuster from ground"]
["Step 5: Measure sideways offset of cable-adjuster from cable-guide"]
["Step 6: Measure height of mast fulcrum from ground"]
["Step 7: Measure horizontal distance between mast face and mast fulcrum"]
["Step 8: *Enter the maximum backward tilt angles for your forklift truck.  "]
["Step 9: *Enter the maximum forward tilt angles for your forklift truck.  "]
["* Note: These figures can be obtained from the manufacturer or by measurement using the tilt-angle calculator."]
[]
["Results:"]
["The mounting position calculator will workout the amount of movement of the indicator weight based on the above measurements.\nThe amount of movement in upward and downward directions both need to limited so that the indicator weight remains within its guide-tube.  "]
["If either movement is too much, then you will be advised which mounting position dimensions need revising.  Re-enter the revised dimensions and instantly see the effect on the results page. "]
["Adjust the proposed mounting positions until both upward and downward movements are within limits for your model of ForkAngles"]
["To get the best accuracy from ForkAngles choose mounting positions to give the highest resolution"]

{"sheet":"Step 1","index":1,"n_rows":4,"n_cols":2,"rows_kept":4,"cut":false,"hidden":false,"merged":[[1,0,1,3],[3,0,3,3],[2,0,2,3],[4,0,4,3],[0,1,0,3]]}
[null,"Mounting Position Calculator   "]
["STEP 1"]
["Measure the proposed height of cable-guide from ground"]
["Enter  dimension (a) in results page and select the units used."]

{"sheet":"Step 2","index":2,"n_rows":5,"n_cols":2,"rows_kept":5,"cut":false,"hidden":false,"merged":[[0,1,0,3],[3,0,3,3],[2,0,2,3],[4,0,4,3],[5,0,5,3],[1,0,1,3]]}
[null,"Mounting Position Calculator  "]
["STEP 2"]
["Measure horizontal distance between cable-guide and mast face"]
["Note: dimension (b) depends on whether the cable-guide is mounted onto the rear or the side face of the mast. "]
["Enter  dimension (b) in results page and select the units used."]

{"sheet":"Step 3","index":3,"n_rows":4,"n_cols":2,"rows_kept":4,"cut":false,"hidden":false,"merged":[[2,0,2,3],[3,0,3,3],[4,0,4,3],[1,0,1,3],[0,1,0,3]]}
[null,"Mounting Position Calculator "]
["STEP 3"]
["Measure horizontal distance from mast face to cable adjuster"]
["Enter  dimension (c) in results page and select the units used."]

{"sheet":"Step 4","index":4,"n_rows":5,"n_cols":2,"rows_kept":5,"cut":false,"hidden":false,"merged":[[0,1,0,3],[2,0,2,3],[3,0,3,3],[4,0,4,3],[5,0,5,3],[1,0,1,3]]}
[null,"Mounting Position Calculator "]
["STEP 4"]
["Measure vertical height of cable-adjuster from ground"]
["Note: Cable adjuster can also be mounted to vertical surfaces "]
["Enter  dimension (d) in results page and select the units used."]

{"sheet":"Step 5","index":5,"n_rows":4,"n_cols":2,"rows_kept":4,"cut":false,"hidden":false,"merged":[[2,0,2,3],[3,0,3,3],[4,0,4,3],[1,0,1,3],[0,1,0,3]]}
[null,"Mounting Position Calculator "]
["STEP 5"]
["Measure sideways offset of cable-adjuster from cable-guide"]
["Enter  dimension (e)in results page and select the units used."]

{"sheet":"Step 6","index":6,"n_rows":5,"n_cols":2,"rows_kept":5,"cut":false,"hidden":false,"merged":[[0,1,0,3],[2,0,2,3],[4,0,4,3],[3,0,3,3],[5,0,5,3],[1,0,1,3]]}
[null,"Mounting Position Calculator "]
["STEP 6"]
["Measure height of mast fulcrum from ground"]
["Note: Mast fulcrum is not necessarily the centre of the front wheel."]
["Enter  dimension (f) in results page and select the units used."]

{"sheet":"Step 7","index":7,"n_rows":5,"n_cols":2,"rows_kept":5,"cut":false,"hidden":false,"merged":[[0,1,0,3],[2,0,2,3],[4,0,4,3],[3,0,3,3],[5,0,5,3],[1,0,1,3]]}
[null,"Mounting Position Calculator "]
["STEP 7"]
["Measure horizontal distance between mast face and mast fulcrum"]
["Note: Mast fulcrum is not necessarily the centre of the front wheel."]
["Enter  dimension (g) in results page and select the units used."]

{"sheet":"Step 8","index":8,"n_rows":4,"n_cols":2,"rows_kept":4,"cut":false,"hidden":false,"merged":[[2,0,2,3],[4,0,4,3],[3,0,3,3],[1,0,1,3],[0,1,0,3]]}
[null,"Mounting Position Calculator "]
["STEP 8"]
["Enter the maximum backward tilt angles for your forklift truck.  "]
["Note: if entering angles directly from manufacturers literature, there can be +/- 0.5 degree error.  It is recommended to either add 0.5 degrees to manufacturers figures or use the tilt-angle calculator to confirm actual measurement."]

{"sheet":"Step 9","index":9,"n_rows":4,"n_cols":2,"rows_kept":4,"cut":false,"hidden":false,"merged":[[2,0,2,3],[3,0,3,3],[4,0,4,3],[1,0,1,3],[0,1,0,3]]}
[null,"Mounting Position Calculator "]
["STEP 9"]
["Enter the maximum forward tilt angles for your forklift truck.  "]
["Note: if entering angles directly from manufacturers literature, there can be +/- 0.5 degree error.  It is recommended to either add 0.5 degrees to manufacturers figures or use the tilt-angle calculator to confirm actual measurement."]

{"sheet":"Results","index":10,"n_rows":46,"n_cols":18,"rows_kept":46,"cut":false,"hidden":false,"merged":[[0,3,0,5],[1,0,1,5],[15,0,15,5],[14,0,14,5],[2,0,2,5],[0,0,0,2],[34,13,34,17],[34,9,34,11],[24,1,24,5],[17,1,17,5],[20,1,20,5],[19,0,19,5],[22,0,22,5]]}
[null,null,null,"Mounting Position Calculator "]
["RESULTS"]
["Enter the values you have measured for each step :"]
[null,"Go to:"]
[null,null,"dimension (a)",190,"cm"]
[null,null,"dimension (b)",7,"cm"]
[null,null,"dimension (c)",65,"cm"]
[null,null," dimension (d)",190,"cm"]
[null,null,"dimension (e)",5,"cm"]
[null,null,"dimension (f)",20,"cm"]
[null,null,"dimension (g)",25,"cm"]
[null,null,"back tilt angle",8,"degrees"]
[null,null,"forward tilt angle",8,"degrees"]
[null,null,"Select which model of ForkAngles","03000"]
[{"$f":"IF(R41>G33,\"Distance from cable-guide to adjuster is too much,reduce c or e\",\"\")","v":""}]
["Based on the measurements you have entered above, the indicator weight will move by the following amounts:"]
[]
[null,"Movement of indicator at full back-tilt:"]
[null,"Downward ",{"$f":"100*(R37-$R$40)","v":23.675175502606855},"cm",{"$f":"IF(C19>G32,\"= Too much\",\"= OK\")","v":"= OK"}]
[{"$f":"IF(AND(C19>G32,I43>0),\"You need to increase (b),(d) or (e), or decrease (a) or (c)\",IF(AND(C19>G32,I43<0),\"You need to increase (a),(b) or (e), or decrease (c) or (d)\",IF(AND(C19>G32,I43=0),\"You need to increase(a),(b), (d) or (e) or decrease (a), (c)or (d)\",\"\")))","v":""}]
[null,"Movement of indicator at full forward tilt:"]
[null,"Upward ",{"$f":"100*(R41-$R$37)","v":23.529423646347915},"cm",{"$f":"IF(C22>G32,\"= Too much\",\"= OK\")","v":"= OK"}]
[{"$f":"IF(AND(C22>G32,I43>0),\"You need to increase (b)(d) or (e), or decrease (a) or (c)\",IF(AND(C22>G32,I43<0),\"You need to increase (a) (b) or (e), or decrease (c) or (d)\",IF(AND(C22>G32,I43=0),\" You need to increase (a) or (e), or decrease (a), (c)or (d)\",\"\")))","v":""}]
[null,"Resolution",{"$f":"100*(R39-$R$38)/2","v":2.9561007498022649},"cm/degree"]
[]
[]
[]
[]
[]
[]
[]
[null,null,null,null,null,"Limit on indicator movement",{"$f":"IF(D14=\"03000\",24.05,26.05)","v":24.05}]
[null,null,null,null,null,"Limit on adjuster position due to cable length",{"$f":"IF(D14=\"03000\",0.85,1.05)","v":0.85}]
[null,null,null,null,null,null,null,null,null,"cm","m","inch",null,null,"effective radius",{"$f":"SQRT(I45^2+I44^2)","v":1.7095028517086479},"m"]
[null,null,null,null,null,null,null,null,"m","Inputted values converted to m"]
[null,null,null,null,null,null,null,"height of cable-guide from floor (a)",{"$f":"MAX(J36:L36)","v":1.9},{"$f":"IF($E5=\"cm\",$D5/100,0)","v":1.9},{"$f":"IF($E5=\"m\",$D5,0)","v":0},{"$f":"IF($E5=\"inch\",$D5*0.0254,0)","v":0},null,"Tilt angle","x","y","z","distance"]
[null,null,null,null,null,null,null,"distance from cable-guide to mast face (b)",{"$f":"MAX(J37:L37)","v":7.0000000000000007E-2},7.0000000000000007E-2,0,0,null,0,{"$f":"$P$34*SIN(RADIANS($N37)-ATAN($I$45/$P$34))","v":-0.17901041093607026},{"$f":"$P$34*COS(RADIANS($N37)-ATAN($I$45/$P$34))","v":1.7001044887819392},0,{"$f":"SQRT(($I$46-$I$45-O37)^2+($I$44+$I$43-P37)^2+(Q37-$I$40)^2)","v":0.58116526641761934}]
[null,null,null,null,null,null,null,"horizontal distance from cable-adjuster  to mast face (c)",{"$f":"MAX(J38:L38)","v":0.65},0.65,0,0,null,1,{"$f":"$P$34*SIN(RADIANS($N38)-ATAN($I$45/$P$34))","v":-0.14931223225935578},{"$f":"$P$34*COS(RADIANS($N38)-ATAN($I$45/$P$34))","v":1.7029697170818181},0,{"$f":"SQRT(($I$46-$I$45-O38)^2+($I$44+$I$43-P38)^2+(Q38-$I$40)^2)","v":0.55159110555673629}]
[null,null,null,null,null,null,null,"height of cable-adjuster from floor (d)",{"$f":"MAX(J39:L39)","v":1.9},1.9,0,0,null,-1,{"$f":"$P$34*SIN(RADIANS($N39)-ATAN($I$45/$P$34))","v":-0.2086540613075008},{"$f":"$P$34*COS(RADIANS($N39)-ATAN($I$45/$P$34))","v":1.6967213921854951},0,{"$f":"SQRT(($I$46-$I$45-O39)^2+($I$44+$I$43-P39)^2+(Q39-$I$40)^2)","v":0.6107131205527816}]
[null,null,null,null,null,null,null,"sideways offset to adjuster (e)",0.05,0.05,0,0,null,{"$f":"D12","v":8},{"$f":"$P$34*SIN(RADIANS($N40)-ATAN($I$45/$P$34))","v":5.9340519737612091E-2},{"$f":"$P$34*COS(RADIANS($N40)-ATAN($I$45/$P$34))","v":1.7084726227590741},0,{"$f":"SQRT(($I$46-$I$45-O40)^2+($I$44+$I$43-P40)^2+(Q40-$I$40)^2)","v":0.3444135113915508}]
[null,null,null,null,null,null,null,"height of mast fulcrum from floor (f)",0.2,0.2,0,0,null,{"$f":"-D13","v":-8},{"$f":"$P$34*SIN(RADIANS($N41)-ATAN($I$45/$P$34))","v":-0.41387710758220642},{"$f":"$P$34*COS(RADIANS($N41)-ATAN($I$45/$P$34))","v":1.6586457547708571},0,{"$f":"SQRT(($I$46-$I$45-O41)^2+($I$44+$I$43-P41)^2+(Q41-$I$40)^2)","v":0.81645950288109848}]
[null,null,null,null,null,null,null,"distance from mast face to fulcrum (g)",0.25,0.25,0,0,null,"negative angle = Forward tilt direction"]
[null,null,null,null,null,null,null,"vertical offset of cable-adjuster (h)",{"$f":"I39-I36","v":0}]
[null,null,null,null,null,null,null,"vertical offset of cable-guider (i)",{"$f":"I36-I41","v":1.7}]
[null,null,null,null,null,null,null,"horizontal offset of cable guide from fulcrum (i)",{"$f":"I42-I37","v":0.18}]
[null,null,null,null,null,null,null,"horizontal distance from cable-guide  to cable-adjuster (j)",{"$f":"I38-I37","v":0.58000000000000007}]

{"sheet":"_SSC","index":11,"n_rows":16,"n_cols":5,"rows_kept":16,"cut":false,"hidden":true,"merged":[]}
["_Ctrl_1","{\"WidgetClassification\":2,\"State\":1,\"Role\":2,\"ImagePath\":\"\",\"EPlacement\":1,\"ShowText\":true,\"Theme\":0,\"ButtonSite\":1,\"IsInline\":false,\"CellName\":\"_Ctrl_1\",\"CellAddress\":\"='Results'!$A$19\",\"WidgetName\":11,\"HiddenRow\":1,\"SheetCodeName\":null,\"ControlId\":null}","{\"IsHide\":false,\"SheetId\":0,\"Name\":\"Procedure\",\"HiddenRow\":0,\"VisibleRange\":\"\",\"SheetTheme\":{\"TabColor\":\"\",\"BodyColor\":\"\",\"BodyImage\":\"\"}}","{\"ButtonStyle\":0,\"Name\":\"Index\",\"HideSscPoweredlogo\":false,\"CopyProtect\":{\"IsEnabled\":false,\"DomainName\":\"\"},\"Theme\":{\"BgColor\":\"#FFFFFFFF\",\"BgImage\":\"\",\"InputBorderStyle\":0},\"Layout\":3,\"SmartphoneSettings\":{\"ViewportLock\":false,\"UseOldViewEngine\":false,\"EnableZoom\":true,\"EnableSwipe\":true,\"HideToolbar\":true,\"InheritBackgroundColor\":false,\"CheckboxFlavor\":3},\"SmartphoneTheme\":0,\"InputDetection\":2,\"Toolbar\":{\"Position\":1,\"IsSubmit\":false,\"IsPrint\":false,\"IsPrintAll\":false,\"IsReset\":false,\"IsUpdate\":false},\"AspnetConfig\":{\"BrowseUrl\":\"http://localhost/ssc\",\"FileExtension\":0},\"ConfigureSubmit\":{\"IsShowCaptcha\":false,\"IsUseSscWebServer\":true,\"ReceiverCode\":\"\",\"IsFreeService\":false,\"IsAdvanceService\":false,\"IsDemonstrationService\":true,\"AfterSuccessfulSubmit\":\"\",\"AfterFailSubmit\":\"\",\"AfterCancelWizard\":\"\",\"IsUseOwnWebServer\":false,\"OwnWebServerURL\":\"\",\"OwnWebServerTarget\":\"\",\"SubmitTarget\":0},\"Flavor\":0,\"Edition\":3,\"IgnoreBgInputCell\":false}","{\"Captcha\":{\"Heading\":\"Enter the number displayed below.\",\"Message\":\"This is to verify that you are a human visitor, to prevent automated form submissions.\",\"OkButton\":\"OK\",\"CancelButton\":\"Cancel\",\"ErrorMessage\":\"Your answer is incorrect, please try again.\"},\"RequiredField\":{\"ErrorMessage\":\"The fields with the red border are required.\",\"OkButton\":\"OK\",\"DDLDefaultRequiredText\":\"Please Select\"},\"WizardButton\":{\"Next\":\"Next\",\"Previous\":\"Previous\",\"Cancel\":\"Start\",\"Finish\":\"End\"},\"ToolbarButton\":{\"Submit\":\"Submit\",\"Print\":\"Print\",\"PrintAll\":\"Print All\",\"Reset\":\"Reset\",\"Update\":\"Update\",\"Back\":\"Back\"},\"BrowserAndLocation\":{\"Browsers\":[],\"ConversionPath\":\"C:\\\\Users\\\\Antony\\\\Documents\\\\SpreadsheetConverter\"},\"AdvancedSettingsModels\":[],\"Dropbox\":{\"AccessToken\":\"\",\"AccessSecret\":\"\"},\"SpreadsheetServer\":{\"Username\":\"\",\"Password\":\"\",\"ServerUrl\":\"\"},\"ConfigureSubmitDefault\":{\"Email\":\"\"}}"]
["_Ctrl_2","{\"WidgetClassification\":0,\"State\":1,\"IsRequired\":false,\"DDLDefaultRequiredText\":\"cm\",\"ListItem\":\"cm\\r\\nm\\r\\ninch\",\"VlookupRange\":\"\",\"ShowListLabel\":true,\"ShowDt\":false,\"CellName\":\"_Ctrl_2\",\"CellAddress\":\"='Diagram'!$C$3\",\"WidgetName\":3,\"HiddenRow\":2,\"SheetCodeName\":null,\"ControlId\":null}","{\"IsHide\":false,\"SheetId\":0,\"Name\":\"Step 1\",\"HiddenRow\":0,\"VisibleRange\":\"\",\"SheetTheme\":{\"TabColor\":\"\",\"BodyColor\":\"\",\"BodyImage\":\"\"}}"]
["_Ctrl_3",null,"{\"IsHide\":false,\"SheetId\":0,\"Name\":\"Results\",\"HiddenRow\":0,\"VisibleRange\":\"\",\"SheetTheme\":{\"TabColor\":\"\",\"BodyColor\":\"\",\"BodyImage\":\"\"}}"]
["_Ctrl_4","{\"WidgetClassification\":3,\"State\":1,\"HyperlinkFlavor\":1,\"Placement\":0,\"LinkTarget\":3,\"CellName\":\"_Ctrl_4\",\"CellAddress\":\"='Step 8'!$A$4\",\"WidgetName\":8,\"HiddenRow\":4,\"SheetCodeName\":null,\"ControlId\":null}","{\"IsHide\":true,\"SheetId\":0,\"Name\":\"Step 2\",\"HiddenRow\":0,\"VisibleRange\":\"\",\"SheetTheme\":{\"TabColor\":\"\",\"BodyColor\":\"\",\"BodyImage\":\"\"}}"]
["_Ctrl_5","{\"WidgetClassification\":3,\"State\":1,\"HyperlinkFlavor\":1,\"Placement\":0,\"LinkTarget\":3,\"CellName\":\"_Ctrl_5\",\"CellAddress\":\"='Step 1'!$B$3\",\"WidgetName\":8,\"HiddenRow\":5,\"SheetCodeName\":null,\"ControlId\":null}","{\"IsHide\":true,\"SheetId\":0,\"Name\":\"Step 3\",\"HiddenRow\":0,\"VisibleRange\":\"\",\"SheetTheme\":{\"TabColor\":\"\",\"BodyColor\":\"\",\"BodyImage\":\"\"}}"]
["_Ctrl_6","{\"WidgetClassification\":0,\"State\":1,\"IsRequired\":true,\"DDLDefaultRequiredText\":\"cm\",\"ListItem\":\"cm\\r\\nm\\r\\ninch\",\"VlookupRange\":\"\",\"ShowListLabel\":true,\"ShowDt\":true,\"CellName\":\"_Ctrl_6\",\"CellAddress\":\"='Step 2'!$C$2\",\"WidgetName\":3,\"HiddenRow\":6,\"SheetCodeName\":null,\"ControlId\":null}","{\"IsHide\":true,\"SheetId\":0,\"Name\":\"Step 4\",\"HiddenRow\":0,\"VisibleRange\":\"\",\"SheetTheme\":{\"TabColor\":\"\",\"BodyColor\":\"\",\"BodyImage\":\"\"}}"]
["_Ctrl_7","{\"WidgetClassification\":0,\"State\":1,\"IsRequired\":false,\"DDLDefaultRequiredText\":\"cm\",\"ListItem\":\"cm\\r\\nm\\r\\ninch\",\"VlookupRange\":\"\",\"ShowListLabel\":true,\"ShowDt\":false,\"CellName\":\"_Ctrl_7\",\"CellAddress\":\"='Step 3'!$C$2\",\"WidgetName\":3,\"HiddenRow\":7,\"SheetCodeName\":null,\"ControlId\":null}","{\"IsHide\":true,\"SheetId\":0,\"Name\":\"Step 5\",\"HiddenRow\":0,\"VisibleRange\":\"\",\"SheetTheme\":{\"TabColor\":\"\",\"BodyColor\":\"\",\"BodyImage\":\"\"}}"]
["_Ctrl_8","{\"WidgetClassification\":0,\"State\":1,\"IsRequired\":false,\"DDLDefaultRequiredText\":\"cm\",\"ListItem\":\"cm\\r\\nm\\r\\ninch\",\"VlookupRange\":\"\",\"ShowListLabel\":true,\"ShowDt\":false,\"CellName\":\"_Ctrl_8\",\"CellAddress\":\"='Step 4'!$C$2\",\"WidgetName\":3,\"HiddenRow\":8,\"SheetCodeName\":null,\"ControlId\":null}","{\"IsHide\":true,\"SheetId\":0,\"Name\":\"Step 6\",\"HiddenRow\":0,\"VisibleRange\":\"\",\"SheetTheme\":{\"TabColor\":\"\",\"BodyColor\":\"\",\"BodyImage\":\"\"}}"]
["_Ctrl_9","{\"WidgetClassification\":0,\"State\":1,\"IsRequired\":false,\"DDLDefaultRequiredText\":\"cm\",\"ListItem\":\"cm\\r\\nm\\r\\ninch\",\"VlookupRange\":\"\",\"ShowListLabel\":true,\"ShowDt\":false,\"CellName\":\"_Ctrl_9\",\"CellAddress\":\"='Step 5'!$C$2\",\"WidgetName\":3,\"HiddenRow\":9,\"SheetCodeName\":null,\"ControlId\":null}","{\"IsHide\":true,\"SheetId\":0,\"Name\":\"Step 7\",\"HiddenRow\":0,\"VisibleRange\":\"\",\"SheetTheme\":{\"TabColor\":\"\",\"BodyColor\":\"\",\"BodyImage\":\"\"}}"]
["_Ctrl_10","{\"WidgetClassification\":0,\"State\":1,\"IsRequired\":false,\"DDLDefaultRequiredText\":\"cm\",\"ListItem\":\"cm\\r\\nm\\r\\ninch\",\"VlookupRange\":\"\",\"ShowListLabel\":true,\"ShowDt\":false,\"CellName\":\"_Ctrl_10\",\"CellAddress\":\"='Step 6'!$C$2\",\"WidgetName\":3,\"HiddenRow\":10,\"SheetCodeName\":null,\"ControlId\":null}","{\"IsHide\":true,\"SheetId\":0,\"Name\":\"Step 8\",\"HiddenRow\":0,\"VisibleRange\":\"\",\"SheetTheme\":{\"TabColor\":\"\",\"BodyColor\":\"\",\"BodyImage\":\"\"}}"]
["_Ctrl_11","{\"WidgetClassification\":0,\"State\":1,\"IsRequired\":false,\"DDLDefaultRequiredText\":\"cm\",\"ListItem\":\"cm\\r\\nm\\r\\ninch\",\"VlookupRange\":\"\",\"ShowListLabel\":true,\"ShowDt\":false,\"CellName\":\"_Ctrl_11\",\"CellAddress\":\"='Step 7'!$C$2\",\"WidgetName\":3,\"HiddenRow\":11,\"SheetCodeName\":null,\"ControlId\":null}","{\"IsHide\":true,\"SheetId\":0,\"Name\":\"Step 9\",\"HiddenRow\":0,\"VisibleRange\":\"\",\"SheetTheme\":{\"TabColor\":\"\",\"BodyColor\":\"\",\"BodyImage\":\"\"}}"]
["_Ctrl_12"]
["_Ctrl_13"]
["_Ctrl_14","{\"WidgetClassification\":2,\"State\":1,\"Role\":1,\"ImagePath\":\"\",\"EPlacement\":1,\"ShowText\":true,\"Theme\":0,\"ButtonSite\":1,\"IsInline\":false,\"CellName\":\"_Ctrl_14\",\"CellAddress\":\"='Results'!$A$20\",\"WidgetName\":11,\"HiddenRow\":14,\"SheetCodeName\":null,\"ControlId\":null}"]
["_Ctrl_15","{\"WidgetClassification\":0,\"State\":1,\"IsRequired\":false,\"DDLDefaultRequiredText\":\"Please Select\",\"ListItem\":\"cm\\r\\nm\\r\\ninch\",\"VlookupRange\":\"\",\"ShowListLabel\":false,\"ShowDt\":false,\"CellName\":\"_Ctrl_15\",\"CellAddress\":\"='Results'!$C$3\",\"WidgetName\":3,\"HiddenRow\":15,\"SheetCodeName\":null,\"ControlId\":null}"]
["_Ctrl_16","{\"WidgetClassification\":0,\"State\":1,\"IsRequired\":false,\"DDLDefaultRequiredText\":\"Please Select\",\"ListItem\":\"03000\\r\\n03002\",\"VlookupRange\":\"\",\"ShowListLabel\":false,\"ShowDt\":false,\"CellName\":\"_Ctrl_16\",\"CellAddress\":\"='Results'!$D$15\",\"WidgetName\":3,\"HiddenRow\":16,\"SheetCodeName\":null,\"ControlId\":null}"]

{"sheet":"_Options","index":12,"n_rows":3,"n_cols":66,"rows_kept":3,"cut":false,"hidden":true,"merged":[]}
["cm","cm","cm","cm","cm","cm","cm","cm","cm","cm","cm","cm","cm","cm","cm","cm","cm","cm","cm","cm","cm","cm","cm","cm","cm","cm","cm","cm","cm","cm","cm","cm","cm","cm","cm","cm","cm","cm","cm","cm","cm","cm","cm","cm","cm","cm","cm","cm","cm","cm","cm","cm","cm","cm","cm","cm","cm","cm","cm","cm","cm","cm","cm","03000","'03000","03000"]
["m","m","m","m","m","m","m","m","m","m","m","m","m","m","m","m","m","m","m","m","m","m","m","m","m","m","m","m","m","m","m","m","m","m","m","m","m","m","m","m","m","m","m","m","m","m","m","m","m","m","m","m","m","m","m","m","m","m","m","m","m","m","m","03002","'03002","03002"]
["inch","inch","inch","inch","inch","inch","inch","inch","inch","inch","inch","inch","inch","inch","inch","inch","inch","inch","inch","inch","inch","inch","inch","inch","inch","inch","inch","inch","inch","inch","inch","inch","inch","inch","inch","inch","inch","inch","inch","inch","inch","inch","inch","inch","inch","inch","inch","inch","inch","inch","inch","inch","inch","inch","inch","inch","inch","inch","inch","inch","inch","inch","inch"]